[Event "HUN-ch U8-U18 2019"]
[Site "Balatonlelle"]
[Date "2019.06.21"]
[Round "2.3"]
[White "Vidak, Boglarka"]
[Black "Kiraly, Lilla Virag"]
[Result "0-1"]
[ECO "B11"]
[WhiteElo "1248"]
[BlackElo "1557"]
[Annotator "NA"]
[PlyCount "102"]
[EventDate "2019.06.21"]
[EventType "swiss"]
[EventCountry "HUN"]
[SourceTitle "playchess.com"]
[Source "ChessBase"]
[SourceQuality "1"]
[TimeControl "40/5400+30:1800+30"]

1. e4 {[%emt 0:00:02]} c6 {[%emt 0:00:10]} 2. Nc3 {[%emt 0:00:06]} d5 {[%emt 0:00:11]} 3. Nf3 {[%emt 0:00:06]} Bg4 {[%emt 0:00:17]} 4. h3 {[%emt 0:00:08]} Bxf3 {[%emt 0:00:37]} 5. Qxf3 {[%emt 0:00:12]} e6 {[%emt 0:00:15]} 6. d4 {[%emt 0:02:00]} Nf6 {[%emt 0:01:29]} 7. e5 {[%emt 0:03:08]} Nfd7 {[%emt 0:00:25]} 8. Qg3 {[%emt 0:01:31]} Qb6 {[%emt 0:01:53]} 9. Ne2 {[%emt 0:03:34]} c5 {[%emt 0:05:23]} 10. c3 {[%emt 0:03:21]} Nc6 {[%emt 0:02:59]} 11. dxc5 {[%emt 0:10:39]} Qxc5 {[%emt 0:01:39]} 12. Be3 {[%emt 0:04:31]} Qb5 {[%emt 0:04:14]} 13. b3 {[%emt 0:07:40]} Ncxe5 {[%emt 0:08:20]} 14. Nc1 {[%emt 0:03:03]} Qa5 {[%emt 0:03:46]} 15. b4 {[%emt 0:02:04]} Qc7 {[%emt 0:03:32]} 16. Bd4 {[%emt 0:08:02]} f6 {[%emt 0:07:39]} 17. Be2 {[%emt 0:02:43]} Rc8 {[%emt 0:06:45]} 18. Bb5 {[%emt 0:04:21]} a6 {[%emt 0:02:14]} 19. Bxd7+ {[%emt 0:01:57]} Nxd7 {[%emt 0:00:46]} 20. Qxc7 {[%emt 0:02:31]} Rxc7 {[%emt 0:00:20]} 21. Ne2 {[%emt 0:00:14]} Bd6 {[%emt 0:01:12]} 22. Rd1 {[%emt 0:03:24]} Ne5 {[%emt 0:01:45]} 23. O-O {[%emt 0:04:15]} Nc6 {[%emt 0:07:24]} 24. Be3 {[%emt 0:02:48]} Ne7 {[%emt 0:02:08]} 25. a3 {[%emt 0:02:00]} Be5 {[%emt 0:03:21]} 26. Bd4 {[%emt 0:01:24]} Bxd4 {[%emt 0:02:02]} 27. Rxd4 {[%emt 0:00:05]} Kf7 {[%emt 0:01:49]} 28. Rc1 {[%emt 0:01:53]} Rhc8 {[%emt 0:00:58]} 29. Rd2 {[%emt 0:01:18]} e5 {[%emt 0:02:31]} 30. Rcd1 {[%emt 0:04:18]} Rd8 {[%emt 0:01:48]} 31. f3 {[%emt 0:00:21]} Rcd7 {[%emt 0:01:23]} 32. g4 {[%emt 0:01:05]} Nc6 {[%emt 0:01:32]} 33. Kf2 {[%emt 0:00:18]} d4 {[%emt 0:01:57]} 34. Kf1 {[%emt 0:01:34]} Ke6 {[%emt 0:01:01]} 35. cxd4 {[%emt 0:04:24]} Nxd4 {[%emt 0:00:20]} 36. Nxd4+ {[%emt 0:00:45]} Rxd4 {[%emt 0:00:57]} 37. Rxd4 {[%emt 0:00:49]} exd4 {[%emt 0:00:55]} 38. Ke2 {[%emt 0:00:24]} Ke5 {[%emt 0:00:37]} 39. Rd3 {[%emt 0:01:23]} Kd5 {[%emt 0:00:49]} 40. Kd2 {[%emt 0:00:00]} Kc4 {[%emt 0:00:00]} 41. Kc2 {[%emt 0:00:32]} Re8 {[%emt 0:01:04]} 42. Kd2 {[%emt 0:01:03]} g5 {[%emt 0:00:57]} 43. Kc2 {[%emt 0:01:28]} Re3 {[%emt 0:00:22]} 44. Rd1 {[%emt 0:01:47]} d3+ {[%emt 0:00:12]} 45. Kd2 {[%emt 0:00:17]} Re2+ {[%emt 0:00:20]} 46. Kc1 {[%emt 0:00:17]} Kc3 {[%emt 0:00:27]} 47. Kb1 {[%emt 0:00:41]} d2 {[%emt 0:00:25]} 48. Ka2 {[%emt 0:00:25]} Re1 {[%emt 0:00:08]} 49. Rxe1 {[%emt 0:00:27]} dxe1=Q {[%emt 0:00:30]} 50. a4 {[%emt 0:00:31]} Qd2+ {[%emt 0:00:14]} 51. Kb1 {[%emt 0:00:06]} Qe3 0-1

[Event "HUN-ch U8-U18 2019"]
[Site "Balatonlelle"]
[Date "2019.06.22"]
[Round "2.4"]
[White "Persanyi, Barnabas"]
[Black "Szilagyi, Norbert"]
[Result "1-0"]
[ECO "A05"]
[WhiteElo "2404"]
[BlackElo "2093"]
[Annotator "ChessBase"]
[PlyCount "179"]
[EventDate "2019.06.21"]
[EventType "swiss"]
[EventCountry "HUN"]
[SourceTitle "playchess.com"]
[Source "ChessBase"]
[SourceQuality "1"]
[TimeControl "40/5400+30:1800+30"]

1. Nf3 {[%emt 0:00:29]} Nf6 {[%emt 0:00:08]} 2. g3 {[%emt 0:00:56]} b6 {[%emt 0:00:29]} 3. Bg2 {[%emt 0:00:41]} Bb7 {[%emt 0:00:09]} 4. O-O {[%emt 0:00:41]} e6 {[%emt 0:01:36]} 5. d3 {[%emt 0:03:00]} Be7 {[%emt 0:04:54]} 6. e4 {[%emt 0:01:59]} d6 {[%emt 0:05:48]} 7. Nbd2 {[%emt 0:05:09]} O-O {[%emt 0:01:28]} 8. Re1 {[%emt 0:03:30]} Nbd7 {[%emt 0:09:21]} 9. Qe2 {[%emt 0:07:21]} c5 {[%emt 0:02:39]} 10. a4 {[%emt 0:02:20]} a6 {[%emt 0:11:33]} 11. b3 {[%emt 0:03:54]} Nb8 {[%emt 0:16:54]} 12. Bb2 {[%emt 0:08:58]} Nc6 {[%emt 0:05:20]} 13. Nc4 {[%emt 0:07:50]} Nd7 {[%emt 0:09:46]} 14. Rad1 {[%emt 0:07:00]} b5 {[%emt 0:00:52]} 15. axb5 {[%emt 0:00:40]} axb5 {[%emt 0:00:08]} 16. Na3 {[%emt 0:01:09]} Qa5 {[%emt 0:07:07]} 17. Ra1 {[%emt 0:07:39]} Qb6 {[%emt 0:00:16]} 18. d4 {[%emt 0:04:35]} Ba6 {[%emt 0:05:42]} 19. d5 {[%emt 0:01:35]} Nd8 {[%emt 0:01:58]} 20. Bf1 {[%emt 0:05:31]} Rb8 {[%emt 0:02:51]} 21. Qd2 {[%emt 0:02:09]} e5 {[%emt 0:04:07]} 22. Bh3 {[%emt 0:01:36]} Bc8 {[%emt 0:01:52]} 23. c3 {[%emt 0:00:57]} Nf6 {[%emt 0:02:09]} 24. Bxc8 {[%emt 0:01:13]} Rxc8 {[%emt 0:00:02]} 25. c4 {[%emt 0:00:47]} b4 {[%emt 0:01:30]} 26. Nb5 {[%emt 0:03:05]} Nb7 {[%emt 0:00:40]} 27. Qd3 {[%emt 0:00:51]} Nh5 {[%emt 0:01:38]} 28. Ra7 {[%emt 0:02:16]} Ra8 {[%emt 0:00:54]} 29. Rea1 {[%emt 0:00:23]} Rxa7 {[%emt 0:00:13]} 30. Rxa7 {[%emt 0:00:45]} g6 {[%emt 0:01:01]} 31. Qd1 {[%emt 0:01:34]} Ng7 {[%emt 0:01:04]} 32. Qa1 {[%emt 0:01:21]} f5 {[%emt 0:00:17]} 33. Qa6 {[%emt 0:02:36]} Qxa6 {[%emt 0:00:34]} 34. Rxa6 {[%emt 0:00:01]} fxe4 {[%emt 0:00:18]} 35. Nd2 {[%emt 0:00:36]} e3 {[%emt 0:00:07]} 36. fxe3 {[%emt 0:00:04]} Bg5 {[%emt 0:00:09]} 37. Nf1 {[%emt 0:03:36]} Nf5 {[%emt 0:01:04]} 38. Bc1 {[%emt 0:00:42]} Rf7 {[%emt 0:01:11]} 39. Bd2 {[%emt 0:01:37]} e4 {[%emt 0:00:52]} 40. Ra7 {[%emt 0:00:00]} Kg7 {[%emt 0:00:00]} 41. Bc1 {[%emt 0:09:33]} h5 {[%emt 0:13:28]} 42. Ra8 {[%emt 0:05:02]} Rf8 {[%emt 0:11:10]} 43. Ra7 {[%emt 0:03:29]} Rf7 {[%emt 0:00:06]} 44. Kg2 {[%emt 0:02:04]} Bd8 {[%emt 0:05:10]} 45. Bb2+ {[%emt 0:01:46]} Bf6 {[%emt 0:00:16]} 46. Bxf6+ {[%emt 0:00:40]} Kxf6 {[%emt 0:00:06]} 47. Kf2 {[%emt 0:00:57]} Kg5 {[%emt 0:02:36]} 48. Kg2 {[%emt 0:06:25]} Kf6 {[%emt 0:00:21]} 49. Ra2 {[%emt 0:03:08]} Ke5 {[%emt 0:01:16]} 50. Na7 {[%emt 0:00:42]} Nd8 {[%emt 0:00:24]} 51. Ra6 {[%emt 0:01:19]} Ne7 {[%emt 0:01:16]} 52. h3 {[%emt 0:00:50]} g5 {[%emt 0:00:19]} 53. Nb5 {[%emt 0:01:34]} Nf5 {[%emt 0:00:09]} 54. Ra8 {[%emt 0:00:29]} Rd7 {[%emt 0:00:47]} 55. Kf2 {[%emt 0:00:36]} Nh6 {[%emt 0:00:37]} 56. Ke2 {[%emt 0:00:50]} Nhf7 {[%emt 0:00:33]} 57. Nd2 {[%emt 0:00:26]} Kf5 {[%emt 0:00:33]} 58. Ra1 {[%emt 0:01:03]} Re7 {[%emt 0:00:39]} 59. Rf1+ {[%emt 0:00:40]} Kg6 {[%emt 0:00:05]} 60. h4 {[%emt 0:00:46]} Nb7 {[%emt 0:00:38]} 61. hxg5 {[%emt 0:01:02]} Nxg5 {[%emt 0:00:07]} 62. Rf8 {[%emt 0:00:16]} Nf7 {[%emt 0:00:33]} 63. Ra8 {[%emt 0:01:24]} Kf6 {[%emt 0:00:58]} 64. Ra1 {[%emt 0:01:13]} Nbd8 {[%emt 0:00:37]} 65. Rf1+ {[%emt 0:00:13]} Ke5 {[%emt 0:00:30]} 66. Rh1 {[%emt 0:00:31]} Ng5 {[%emt 0:00:30]} 67. Rxh5 {[%emt 0:00:17]} Ndf7 {[%emt 0:00:32]} 68. Rh4 {[%emt 0:00:52]} Kf5 {[%emt 0:00:14]} 69. Rf4+ {[%emt 0:00:40]} Kg6 {[%emt 0:00:01]} 70. Rf1 {[%emt 0:00:41]} Kh5 {[%emt 0:00:28]} 71. Rf6 {[%emt 0:00:40]} Rd7 {[%emt 0:00:25]} 72. Re6 {[%emt 0:00:38]} Kg4 {[%emt 0:00:52]} 73. Nxe4 {[%emt 0:00:26]} Nxe4 {[%emt 0:00:39]} 74. Rxe4+ {[%emt 0:00:05]} Kxg3 {[%emt 0:00:07]} 75. Re6 {[%emt 0:00:31]} Kg4 {[%emt 0:00:14]} 76. e4 {[%emt 0:01:46]} Kf4 {[%emt 0:00:20]} 77. Rf6+ {[%emt 0:00:07]} Kg5 {[%emt 0:01:05]} 78. Rf1 {[%emt 0:00:33]} Ne5 {[%emt 0:00:36]} 79. Nxd6 {[%emt 0:00:27]} Rxd6 {[%emt 0:00:59]} 80. Rf5+ {[%emt 0:00:05]} Kg4 {[%emt 0:00:11]} 81. Rxe5 {[%emt 0:00:05]} Kf4 {[%emt 0:00:06]} 82. Re6 {[%emt 0:00:14]} Rd8 {[%emt 0:00:04]} 83. Kd3 {[%emt 0:00:47]} Rh8 {[%emt 0:00:19]} 84. Rf6+ {[%emt 0:00:09]} Ke5 {[%emt 0:00:04]} 85. Rf5+ {[%emt 0:00:05]} Kd6 {[%emt 0:00:11]} 86. e5+ {[%emt 0:00:05]} Ke7 {[%emt 0:00:04]} 87. Ke4 {[%emt 0:00:16]} Rh3 {[%emt 0:00:13]} 88. d6+ {[%emt 0:00:11]} Ke8 {[%emt 0:00:28]} 89. Rf3 {[%emt 0:00:55]} Rh4+ {[%emt 0:00:13]} 90. Kd5 {[%emt 0:00:07]} 1-0

[Event "HUN-ch U8-U18 2019"]
[Site "Balatonlelle"]
[Date "2019.06.21"]
[Round "2.4"]
[White "Vilics, Hanna"]
[Black "Markus, Molli Amina"]
[Result "*"]
[WhiteElo "1285"]
[BlackElo "1755"]
[Annotator "NA"]
[PlyCount "37"]
[EventDate "2019.06.21"]
[EventType "swiss"]
[EventCountry "HUN"]
[SourceTitle "playchess.com"]
[Source "ChessBase"]
[SourceQuality "1"]
[TimeControl "40/5400+30:1800+30"]

1. e4 {[%emt 0:00:03]} e5 {[%emt 0:00:10]} 2. Nf3 {[%emt 0:00:08]} Nc6 {[%emt 0:00:08]} 3. Bc4 {[%emt 0:00:23]} Bc5 {[%emt 0:00:14]} 4. O-O {[%emt 0:00:39]} Nf6 {[%emt 0:00:13]} 5. h3 {[%emt 0:00:34]} O-O {[%emt 0:00:37]} 6. Nc3 {[%emt 0:00:12]} d6 {[%emt 0:00:40]} 7. d3 {[%emt 0:00:25]} h6 {[%emt 0:00:37]} 8. Be3 {[%emt 0:00:26]} Bb6 {[%emt 0:00:27]} 9. Nd5 {[%emt 0:00:36]} Be6 {[%emt 0:01:12]} 10. Nxf6+ Qxf6 11. Bxe6 {[%emt 0:02:59]} fxe6 {[%emt 0:01:03]} 12. Nd2 {[%emt 0:00:32]} Qg6 {[%emt 0:00:51]} 13. Nc4 {[%emt 0:00:36]} Bxe3 {[%emt 0:01:55]} 14. fxe3 {[%emt 0:00:18]} Rxf1+ {[%emt 0:00:59]} 15. Qxf1 {[%emt 0:00:28]} Rf8 {[%emt 0:00:19]} 16. Qe2 {[%emt 0:00:34]} d5 {[%emt 0:00:38]} 17. exd5 {[%emt 0:00:21]} exd5 {[%emt 0:00:14]} 18. Nd2 {[%emt 0:00:31]} Qe6 {[%emt 0:07:59]} 19. e4 {[%emt 0:00:48]} *

[Event "HUN-ch U8-U18 2019"]
[Site "Balatonlelle"]
[Date "2019.06.22"]
[Round "2.5"]
[White "Papp, Bence"]
[Black "Karacsonyi, Gellert"]
[Result "1/2-1/2"]
[ECO "B34"]
[WhiteElo "2094"]
[BlackElo "2304"]
[Annotator "NA"]
[PlyCount "103"]
[EventDate "2019.06.21"]
[EventType "swiss"]
[EventCountry "HUN"]
[SourceTitle "playchess.com"]
[Source "ChessBase"]
[SourceQuality "1"]
[TimeControl "40/5400+30:1800+30"]

1. e4 {[%emt 0:00:02]} c5 {[%emt 0:00:12]} 2. Nf3 {[%emt 0:00:04]} Nc6 {[%emt 0:00:13]} 3. d4 {[%emt 0:00:04]} cxd4 {[%emt 0:00:15]} 4. Nxd4 {[%emt 0:00:04]} g6 {[%emt 0:00:13]} 5. Nc3 {[%emt 0:00:05]} Bg7 {[%emt 0:00:16]} 6. Nb3 {[%emt 0:00:06]} d6 {[%emt 0:03:47]} 7. Be2 {[%emt 0:00:26]} Nf6 {[%emt 0:00:10]} 8. O-O {[%emt 0:00:10]} O-O {[%emt 0:00:12]} 9. Bg5 {[%emt 0:00:07]} Be6 {[%emt 0:02:43]} 10. Qd2 {[%emt 0:01:03]} Rc8 {[%emt 0:01:25]} 11. Rad1 {[%emt 0:00:41]} Ne5 {[%emt 0:05:04]} 12. f3 {[%emt 0:07:53]} Bc4 {[%emt 0:15:51]} 13. Nd4 {[%emt 0:04:57]} Bxe2 {[%emt 0:00:44]} 14. Ncxe2 {[%emt 0:04:00]} a6 {[%emt 0:12:05]} 15. b3 {[%emt 0:00:59]} b5 {[%emt 0:01:25]} 16. Be3 {[%emt 0:20:28]} Rc7 {[%emt 0:03:21]} 17. Qa5 {[%emt 0:01:43]} Qc8 {[%emt 0:01:34]} 18. a4 {[%emt 0:01:33]} bxa4 {[%emt 0:02:35]} 19. Qxa4 {[%emt 0:00:12]} Ned7 {[%emt 0:05:02]} 20. c4 {[%emt 0:04:48]} Qb7 {[%emt 0:01:36]} 21. Nc1 {[%emt 0:18:50]} Rb8 {[%emt 0:02:10]} 22. Nc2 {[%emt 0:13:31]} Nc5 {[%emt 0:02:17]} 23. Qa5 {[%emt 0:10:12]} Ne8 {[%emt 0:05:06]} 24. b4 {[%emt 0:06:39]} Ne6 {[%emt 0:02:22]} 25. c5 {[%emt 0:00:31]} Bc3 {[%emt 0:27:39]} 26. Nd3 {[%emt 0:00:24]} Qc8 {[%emt 0:01:34]} 27. Qa3 {[%emt 0:01:13]} Bf6 {[%emt 0:00:03]} 28. f4 {[%emt 0:01:42]} dxc5 {[%emt 0:02:04]} 29. Nxc5 {[%emt 0:00:34]} Nxc5 {[%emt 0:01:31]} 30. Bxc5 {[%emt 0:00:11]} Nd6 {[%emt 0:00:46]} 31. e5 {[%emt 0:01:01]} Nb5 {[%emt 0:00:05]} 32. Qf3 {[%emt 0:00:37]} Bg7 {[%emt 0:00:15]} 33. Ne3 {[%emt 0:00:48]} Qe6 {[%emt 0:01:04]} 34. Ra1 {[%emt 0:00:03]} Rd7 {[%emt 0:00:37]} 35. f5 {[%emt 0:00:54]} Qxe5 {[%emt 0:00:35]} 36. Rxa6 {[%emt 0:00:06]} Nd4 {[%emt 0:00:33]} 37. Bxd4 {[%emt 0:01:03]} Rxd4 {[%emt 0:00:10]} 38. fxg6 {[%emt 0:00:07]} fxg6 {[%emt 0:00:02]} 39. Qf7+ {[%emt 0:00:34]} Kh8 {[%emt 0:00:02]} 40. Re6 {[%emt 0:00:00]} Qb5 {[%emt 0:00:00]} 41. Rxe7 {[%emt 0:00:44]} Rg8 {[%emt 0:01:57]} 42. h3 {[%emt 0:15:22]} Rxb4 {[%emt 0:07:08]} 43. Qd5 {[%emt 0:02:12]} Qxd5 {[%emt 0:09:47]} 44. Nxd5 {[%emt 0:00:23]} Rbb8 {[%emt 0:01:30]} 45. Rff7 {[%emt 0:05:08]} Rbf8 {[%emt 0:00:20]} 46. Kf2 {[%emt 0:01:40]} Rxf7+ {[%emt 0:00:15]} 47. Rxf7 {[%emt 0:00:07]} Rd8 {[%emt 0:00:45]} 48. Nf4 {[%emt 0:00:36]} Re8 {[%emt 0:01:08]} 49. Kf3 {[%emt 0:01:56]} Kg8 {[%emt 0:00:38]} 50. Rb7 {[%emt 0:00:11]} Rf8 {[%emt 0:00:24]} 51. Ke4 {[%emt 0:00:13]} Re8+ {[%emt 0:00:36]} 52. Kf3 {[%emt 0:03:42]} 1/2-1/2

[Event "HUN-ch U8-U18 2019"]
[Site "Balatonlelle"]
[Date "2019.06.21"]
[Round "2.5"]
[White "Nandin-Erdene, Davaademberel"]
[Black "Papp, Regina"]
[Result "*"]
[WhiteElo "1581"]
[BlackElo "1252"]
[Annotator "NA"]
[PlyCount "22"]
[EventDate "2019.06.21"]
[EventType "swiss"]
[EventCountry "HUN"]
[SourceTitle "playchess.com"]
[Source "ChessBase"]
[SourceQuality "1"]
[TimeControl "40/5400+30:1800+30"]

1. d4 {[%emt 0:00:02]} d5 {[%emt 0:00:15]} 2. Nf3 {[%emt 0:00:51]} Nc6 {[%emt 0:00:00]} 3. Bf4 {[%emt 0:01:17]} Nf6 {[%emt 0:00:57]} 4. e3 {[%emt 0:01:56]} Bg4 {[%emt 0:00:48]} 5. Nbd2 {[%emt 0:02:14]} e6 {[%emt 0:00:56]} 6. c3 {[%emt 0:00:25]} Bd6 {[%emt 0:00:58]} 7. Bg3 {[%emt 0:00:11]} Ne4 {[%emt 0:00:54]} 8. Bd3 {[%emt 0:01:34]} Nxg3 {[%emt 0:00:56]} 9. hxg3 {[%emt 0:00:20]} Bf5 {[%emt 0:01:02]} 10. Bc2 {[%emt 0:00:49]} Qe7 {[%emt 0:01:34]} 11. Qb1 {[%emt 0:06:47]} Qd7 {[%emt 0:00:42]} *

[Event "HUN-ch U8-U18 2019"]
[Site "Balatonlelle"]
[Date "2019.06.22"]
[Round "2.6"]
[White "Pribelszky, Bence"]
[Black "Kratzmajer, Akos Gyorgy"]
[Result "1-0"]
[ECO "D35"]
[WhiteElo "2244"]
[BlackElo "2048"]
[Annotator "NA"]
[PlyCount "107"]
[EventDate "2019.06.21"]
[EventType "swiss"]
[EventCountry "HUN"]
[SourceTitle "playchess.com"]
[Source "ChessBase"]
[SourceQuality "1"]
[TimeControl "40/5400+30:1800+30"]

1. d4 {[%emt 0:00:03]} d5 {[%emt 0:00:04]} 2. c4 {[%emt 0:00:05]} e6 {[%emt 0:00:04]} 3. Nc3 {[%emt 0:00:06]} Nf6 {[%emt 0:00:04]} 4. cxd5 {[%emt 0:00:08]} exd5 {[%emt 0:00:06]} 5. Bg5 {[%emt 0:00:06]} Be7 {[%emt 0:00:05]} 6. e3 {[%emt 0:00:06]} h6 {[%emt 0:00:05]} 7. Bh4 {[%emt 0:00:08]} c6 {[%emt 0:00:36]} 8. Qc2 {[%emt 0:02:11]} O-O {[%emt 0:01:09]} 9. Bd3 {[%emt 0:00:08]} b6 {[%emt 0:03:05]} 10. Nge2 {[%emt 0:02:08]} Nbd7 {[%emt 0:01:12]} 11. O-O {[%emt 0:00:37]} Bb7 {[%emt 0:01:32]} 12. Rfd1 {[%emt 0:01:06]} Re8 {[%emt 0:02:58]} 13. Bf5 {[%emt 0:04:32]} Nf8 {[%emt 0:06:20]} 14. Rac1 {[%emt 0:06:19]} g6 {[%emt 0:01:43]} 15. Bd3 {[%emt 0:01:45]} Rc8 {[%emt 0:05:03]} 16. Qa4 {[%emt 0:05:01]} a6 {[%emt 0:07:19]} 17. Qb3 {[%emt 0:06:56]} N6d7 {[%emt 0:15:21]} 18. Bg3 {[%emt 0:04:30]} Bh4 {[%emt 0:03:27]} 19. Re1 {[%emt 0:06:29]} Bxg3 {[%emt 0:04:07]} 20. Nxg3 {[%emt 0:00:20]} Ne6 {[%emt 0:02:39]} 21. Rcd1 {[%emt 0:04:00]} Qc7 {[%emt 0:15:46]} 22. Bb1 {[%emt 0:03:10]} Kg7 {[%emt 0:03:55]} 23. Rd2 {[%emt 0:01:49]} Nf6 {[%emt 0:02:08]} 24. Qd1 {[%emt 0:01:51]} c5 {[%emt 0:02:08]} 25. Nce2 {[%emt 0:08:52]} c4 {[%emt 0:03:21]} 26. f3 {[%emt 0:04:52]} Nf8 {[%emt 0:07:53]} 27. Nc3 {[%emt 0:01:32]} b5 {[%emt 0:01:17]} 28. a3 {[%emt 0:00:21]} h5 {[%emt 0:03:10]} 29. Nh1 {[%emt 0:00:06]} Re7 {[%emt 0:01:43]} 30. Nf2 {[%emt 0:00:29]} Rce8 {[%emt 0:01:17]} 31. e4 {[%emt 0:01:42]} dxe4 {[%emt 0:00:05]} 32. fxe4 {[%emt 0:00:12]} Nd5 {[%emt 0:02:04]} 33. Nxd5 {[%emt 0:03:12]} Bxd5 {[%emt 0:00:05]} 34. Rde2 {[%emt 0:00:05]} Bb7 {[%emt 0:01:05]} 35. Qd2 {[%emt 0:00:26]} Qb6 {[%emt 0:01:01]} 36. Qc3 {[%emt 0:10:33]} Kg8 {[%emt 0:00:43]} 37. Rd2 {[%emt 0:00:05]} f5 {[%emt 0:00:55]} 38. e5 {[%emt 0:19:45]} Bd5 {[%emt 0:00:39]} 39. Qg3 {[%emt 0:01:31]} Kh8 {[%emt 0:00:33]} 40. Nh3 {[%emt 0:00:00]} Qc6 {[%emt 0:00:00]} 41. Nf4 {[%emt 0:07:53]} a5 {[%emt 0:05:51]} 42. Qc3 {[%emt 0:06:03]} Ra8 {[%emt 0:03:14]} 43. e6 {[%emt 0:04:57]} Kh7 {[%emt 0:03:06]} 44. Re5 {[%emt 0:06:52]} Rd8 {[%emt 0:05:17]} 45. Nxh5 {[%emt 0:06:04]} gxh5 {[%emt 0:02:35]} 46. Rxf5 {[%emt 0:00:25]} Kh8 {[%emt 0:04:09]} 47. Rxh5+ {[%emt 0:01:32]} Nh7 {[%emt 0:00:06]} 48. Bxh7 {[%emt 0:02:12]} Rxh7 {[%emt 0:00:13]} 49. Rxh7+ {[%emt 0:00:29]} Kxh7 {[%emt 0:00:04]} 50. Qh3+ {[%emt 0:00:11]} Kg7 {[%emt 0:00:54]} 51. Qg4+ {[%emt 0:00:33]} Kf8 {[%emt 0:00:37]} 52. Rf2+ {[%emt 0:00:16]} Ke7 {[%emt 0:00:48]} 53. Rf7+ {[%emt 0:00:39]} Kd6 {[%emt 0:00:21]} 54. Qf4+ {[%emt 0:00:08]} 1-0

[Event "HUN-ch U8-U18 2019"]
[Site "Balatonlelle"]
[Date "2019.06.21"]
[Round "2.6"]
[White "Vidak, Boglarka"]
[Black "Kiraly, Lilla Virag"]
[Result "*"]
[ECO "C40"]
[WhiteElo "1248"]
[BlackElo "1557"]
[Annotator "NA"]
[PlyCount "20"]
[EventDate "2019.06.21"]
[EventType "swiss"]
[EventCountry "HUN"]
[SourceTitle "playchess.com"]
[Source "ChessBase"]
[SourceQuality "1"]
[TimeControl "40/5400+30:1800+30"]

1. e4 {[%emt 0:00:00]} e5 {[%emt 0:00:12]} 2. Nf3 {[%emt 0:00:09]} Nc6 {[%emt 0:00:15]} 3. d4 {[%emt 0:00:15]} exd4 {[%emt 0:00:35]} 4. Nxd4 {[%emt 0:00:09]} Bc5 {[%emt 0:00:46]} 5. Nb3 {[%emt 0:00:29]} Bb6 {[%emt 0:03:02]} 6. Bc4 {[%emt 0:00:59]} Nge7 {[%emt 0:03:19]} 7. O-O {[%emt 0:00:36]} d6 {[%emt 0:04:00]} 8. Qf3 {[%emt 0:02:51]} Ne5 {[%emt 0:01:08]} 9. Qe2 {[%emt 0:00:48]} Bg4 {[%emt 0:02:41]} 10. Qe1 {[%emt 0:01:38]} Nxc4 {[%emt 0:00:44]} *

[Event "HUN-ch U8-U18 2019"]
[Site "Balatonlelle"]
[Date "2019.06.21"]
[Round "2.7"]
[White "Borhy, Marcell"]
[Black "Farkas, Otto Jr."]
[Result "1-0"]
[ECO "D25"]
[WhiteElo "2374"]
[BlackElo "1859"]
[Annotator "NA"]
[PlyCount "69"]
[EventDate "2019.06.21"]
[EventType "swiss"]
[EventCountry "HUN"]
[SourceTitle "playchess.com"]
[Source "ChessBase"]
[SourceQuality "1"]
[TimeControl "40/5400+30:1800+30"]

1. d4 {[%emt 0:00:04]} d5 {[%emt 0:00:11]} 2. Nf3 {[%emt 0:00:12]} Nf6 {[%emt 0:00:14]} 3. c4 {[%emt 0:00:09]} dxc4 {[%emt 0:00:33]} 4. e3 {[%emt 0:00:11]} a6 {[%emt 0:00:13]} 5. a4 {[%emt 0:00:31]} Nc6 {[%emt 0:00:46]} 6. Bxc4 {[%emt 0:00:23]} Bg4 {[%emt 0:01:11]} 7. O-O {[%emt 0:02:07]} e6 {[%emt 0:00:15]} 8. Nc3 {[%emt 0:02:27]} Be7 {[%emt 0:01:47]} 9. h3 {[%emt 0:03:33]} Bh5 {[%emt 0:00:24]} 10. Qe2 {[%emt 0:02:04]} O-O {[%emt 0:05:10]} 11. Rd1 {[%emt 0:01:06]} Nb4 {[%emt 0:06:18]} 12. g4 {[%emt 0:02:22]} Bg6 {[%emt 0:01:00]} 13. Ne5 {[%emt 0:02:22]} c6 {[%emt 0:09:21]} 14. e4 {[%emt 0:05:03]} Nd7 {[%emt 0:13:57]} 15. f4 {[%emt 0:05:01]} Nxe5 {[%emt 0:00:43]} 16. dxe5 {[%emt 0:00:06]} Qb6+ {[%emt 0:00:14]} 17. Kg2 {[%emt 0:01:00]} h6 {[%emt 0:01:01]} 18. f5 {[%emt 0:01:44]} Bh7 {[%emt 0:01:09]} 19. a5 {[%emt 0:22:17]} Qc7 {[%emt 0:09:24]} 20. fxe6 {[%emt 0:01:33]} Qxe5 {[%emt 0:02:14]} 21. exf7+ {[%emt 0:00:21]} Kh8 {[%emt 0:00:10]} 22. Rf1 {[%emt 0:01:52]} Rad8 {[%emt 0:01:47]} 23. Bf4 {[%emt 0:04:08]} Qc5 {[%emt 0:00:18]} 24. Be6 {[%emt 0:04:25]} Bg5 {[%emt 0:04:49]} 25. Bxg5 {[%emt 0:09:30]} Qxg5 {[%emt 0:01:08]} 26. Rad1 {[%emt 0:02:02]} Qxa5 {[%emt 0:00:52]} 27. Rd7 {[%emt 0:08:19]} Rxd7 {[%emt 0:03:55]} 28. Bxd7 {[%emt 0:00:01]} Qd8 {[%emt 0:02:21]} 29. Be8 {[%emt 0:07:11]} Qd3 {[%emt 0:02:00]} 30. e5 {[%emt 0:02:04]} Qxe2+ {[%emt 0:02:41]} 31. Nxe2 {[%emt 0:00:01]} Be4+ {[%emt 0:00:11]} 32. Kg3 {[%emt 0:00:38]} Nd5 {[%emt 0:03:28]} 33. Nd4 {[%emt 0:00:44]} Nc7 {[%emt 0:02:06]} 34. e6 {[%emt 0:00:18]} Nd5 {[%emt 0:00:39]} 35. Re1 {[%emt 0:00:21]} 1-0